bitfinex-derivatives/quotes_BTCF0:USTF0_20250902
["timestamp","ask_amount","ask_price","bid_price","bid_amount"]
[1756791333637,0.02309504,110220.0,110210.0,1.98069897]
[1756791334343,0.02309504,110220.0,110210.0,2.06227431]
[1756791334539,0.02309504,110220.0,110210.0,1.94795198]
[1756791335745,0.02309504,110220.0,110210.0,1.71300909]
[1756791335948,0.02309504,110220.0,110210.0,1.94795198]
[1756791337541,0.25803793,110220.0,110210.0,1.02886028]
[1756791337746,0.60803793,110220.0,110210.0,1.85746028]
[1756791338042,0.27803793,110220.0,110210.0,1.85746028]
[1756791339837,0.27803793,110220.0,110210.0,1.77588494]
[1756791341946,0.27803793,110220.0,110210.0,1.86661664]
[1756791343742,0.27803793,110220.0,110210.0,1.93182035]
[1756791345150,0.04309504,110220.0,110210.0,1.93182035]
[1756791345351,0.27803793,110220.0,110210.0,1.93182035]
[1756791347353,0.27803793,110220.0,110210.0,1.86661664]
[1756791347551,0.27803793,110220.0,110210.0,1.94819198]
[1756791348851,0.25803793,110220.0,110210.0,1.94819198]
[1756791349453,0.02309504,110220.0,110210.0,1.94808344]
[1756791351049,0.02309504,110220.0,110210.0,1.11948344]
[1756791351255,0.02309504,110220.0,110210.0,1.85699174]
[1756791352452,0.04309504,110220.0,110210.0,1.02875174]
[1756791352751,0.58792939,110220.0,110210.0,1.62215739]
[1756791352956,0.35309504,110220.0,110210.0,1.85699174]
[1756791353458,0.02309504,110220.0,110210.0,1.85699174]
[1756791355059,0.02309504,110220.0,110210.0,1.94772344]
[1756791356960,0.04309504,110220.0,110210.0,1.85699174]
[1756791359058,0.04309504,110220.0,110210.0,1.49619174]
[1756791359362,0.02309504,110220.0,110210.0,1.5254164]
[1756791359562,0.35309504,110220.0,110210.0,1.5254164]
[1756791359759,0.04309504,110220.0,110210.0,1.5254164]
[1756791360363,0.04309504,110220.0,110210.0,1.63973873]
[1756791360866,0.02309504,110220.0,110210.0,1.63973873]
[1756791361166,0.02309504,110220.0,110210.0,1.5254164]
[1756791361568,0.02309504,110220.0,110210.0,1.6161481]
[1756791362366,0.02309504,110220.0,110210.0,1.38131375]
[1756791362570,0.02309504,110220.0,110210.0,1.6161481]
[1756791363168,0.02309504,110220.0,110210.0,1.5254164]
[1756791364566,0.02309504,110220.0,110210.0,1.63973873]
[1756791366172,0.02309504,110220.0,110210.0,1.73047043]
[1756791368272,0.02309504,110220.0,110210.0,1.49563608]
[1756791368466,0.02309504,110220.0,110210.0,1.73047043]
[1756791369072,0.02309504,110220.0,110210.0,1.69784349]
[1756791370670,0.56783435,110220.0,110210.0,1.37223744]
[1756791370866,0.56783435,110220.0,110210.0,1.29054205]
[1756791371070,0.56783435,110220.0,110210.0,1.37223651]
[1756791371966,0.56783435,110220.0,110210.0,0.54403651]
[1756791372168,0.56783435,110220.0,110210.0,1.37223651]
[1756791373874,0.56783435,110220.0,110210.0,1.46296821]
[1756791375176,0.23783435,110220.0,110210.0,1.46296821]
[1756791377378,0.57783435,110220.0,110210.0,1.46296821]
[1756791378180,0.003,110220.0,110210.0,1.46296821]
[1756791380677,0.003,110220.0,110210.0,1.69780256]
[1756791381080,0.003,110220.0,110210.0,1.6161081]
[1756791381483,0.003,110220.0,110210.0,1.73043043]
[1756791385683,0.003,110220.0,110210.0,1.8661081]
[1756791385891,0.003,110220.0,110210.0,2.2061081]
[1756791386187,9.838e-05,110220.0,110210.0,1.8661081]
[1756791386888,9.838e-05,110220.0,110210.0,1.15220678]
[1756791387093,0.00209838,110220.0,110210.0,1.98040678]
[1756791387285,0.00209838,110220.0,110210.0,1.8661081]
[1756791387483,0.00209838,110220.0,110210.0,1.98037731]
[1756791388086,0.00209838,110220.0,110210.0,1.98033731]
[1756791389088,9.838e-05,110220.0,110210.0,1.98033731]
[1756791389383,0.30902849,110240.0,110220.0,0.090719]
[1756791389589,0.68902849,110240.0,110230.0,1.35263641]
[1756791390185,0.38,110240.0,110230.0,1.35263641]
[1756791390393,0.59563435,110270.0,110260.0,0.04657]
[1756791390580,0.91563435,110270.0,110260.0,0.04657]
[1756791390785,0.91563435,110270.0,110260.0,0.08208]
[1756791391183,1.16563435,110270.0,110260.0,0.08208]
[1756791391782,0.80483435,110270.0,110260.0,0.08208]
[1756791391985,1.16563435,110270.0,110260.0,0.08208]
[1756791392792,1.17063435,110270.0,110260.0,0.08208]
[1756791393093,1.24907571,110270.0,110260.0,0.08308]
[1756791393691,1.24407571,110270.0,110260.0,0.08308]
[1756791393886,1.25518885,110270.0,110260.0,0.08308]
[1756791394089,1.24607571,110270.0,110260.0,0.08308]
[1756791394290,0.40044136,110270.0,110260.0,0.76940485]
[1756791394689,0.327,110270.0,110260.0,0.76940485]
[1756791394894,0.327,110270.0,110260.0,0.83467993]
[1756791395094,0.327,110270.0,110260.0,0.76940485]
[1756791398903,0.327,110270.0,110260.0,0.5345705]
[1756791399095,0.327,110270.0,110260.0,0.76940485]
[1756791401704,0.327,110270.0,110260.0,1.59732485]
[1756791402303,0.324,110270.0,110260.0,1.59632485]
[1756791402704,0.321,110270.0,110260.0,1.59732485]
[1756791402901,0.32,110270.0,110260.0,1.59732485]
[1756791403102,0.322,110270.0,110260.0,1.59732485]
[1756791403303,0.322,110270.0,110260.0,1.59632485]
[1756791403704,0.032,110270.0,110260.0,1.59632485]
[1756791409408,0.032,110270.0,110260.0,1.3614905]
[1756791409710,0.26662653,110270.0,110260.0,1.83074356]
[1756791410512,0.26662653,110270.0,110260.0,1.46994356]
[1756791410714,0.26662653,110270.0,110260.0,1.83074356]
[1756791417414,0.26662653,110270.0,110260.0,1.89601864]
[1756791417915,0.26662653,110270.0,110260.0,1.83074356]
[1756791418415,0.61662653,110270.0,110260.0,1.33591508]
[1756791418616,0.61662653,110270.0,110260.0,1.57054161]
[1756791419819,0.61662653,110270.0,110260.0,0.74278161]
[1756791420025,0.61662653,110270.0,110260.0,1.57050161]
[1756791420217,0.61662653,110270.0,110260.0,0.50815508]
[1756791420524,0.61662653,110270.0,110260.0,0.14735508]
[1756791421314,0.61662653,110270.0,110260.0,0.9098]
[1756791421518,1.10125306,110270.0,110260.0,0.08208]
[1756791423728,1.10125306,110270.0,110260.0,0.14735508]
[1756791425731,0.85125306,110270.0,110260.0,0.11184508]
[1756791429037,1.21205306,110270.0,110260.0,0.11184508]
[1756791432736,1.21205306,110270.0,110250.0,1.32160655]
[1756791432937,0.46925306,110260.0,110250.0,1.32160655]
[1756791433236,0.78925306,110260.0,110250.0,0.54265655]
[1756791433831,0.78925306,110260.0,110250.0,0.47738147]
[1756791434034,0.78925306,110260.0,110250.0,0.47838147]
[1756791434532,0.32,110260.0,110250.0,0.47838147]
[1756791434741,0.79225306,110260.0,110250.0,0.47838147]
[1756791435432,0.323,110260.0,110250.0,0.47838147]
[1756791435640,0.79225306,110260.0,110250.0,0.47838147]
[1756791435940,0.79225306,110260.0,110250.0,0.47738147]
[1756791436142,0.79425306,110260.0,110250.0,0.47738147]
[1756791437134,0.79425306,110260.0,110250.0,0.55897788]
[1756791438342,0.79425306,110260.0,110250.0,0.47738147]
[1756791442748,0.79425306,110260.0,110250.0,1.30498147]
[1756791443746,0.79425306,110260.0,110250.0,1.37023609]
[1756791445052,0.79425306,110260.0,110250.0,1.00943609]
[1756791446549,0.79425306,110260.0,110250.0,0.94418147]
[1756791447244,0.79425306,110260.0,110250.0,0.18184558]
[1756791447245,1.15505306,110260.0,110250.0,0.18184558]
[1756791447444,2.46723959,110260.0,110250.0,0.06526411]
[1756791447853,2.46723959,110260.0,110240.0,0.14919411]
[1756791448037,0.46925306,110250.0,110240.0,0.14919411]
[1756791448237,0.79925306,110250.0,110240.0,0.14919411]
[1756791448440,0.79925306,110250.0,110240.0,0.11395411]
[1756791449043,0.79925306,110250.0,110240.0,0.14919411]
[1756791449240,0.79925306,110250.0,110240.0,0.08393]
[1756791451154,0.80325306,110250.0,110240.0,0.08493]
[1756791451950,0.80325306,110250.0,110240.0,0.04969]
[1756791452346,0.80325306,110250.0,110240.0,0.08493]
[1756791452649,0.82152534,110250.0,110240.0,0.08493]
[1756791452846,0.82452534,110250.0,110240.0,0.08493]
[1756791455055,0.82452534,110250.0,110240.0,0.15019411]
[1756791455255,0.82452534,110250.0,110240.0,0.08493]
[1756791455758,0.82452534,110250.0,110240.0,0.04969]
[1756791456258,0.82452534,110250.0,110240.0,0.11495411]
[1756791457557,0.82452534,110250.0,110240.0,0.14945411]
[1756791458361,0.82452534,110250.0,110240.0,0.08419]
[1756791458958,0.82452534,110250.0,110240.0,0.14945411]
[1756791459159,0.82452534,110250.0,110240.0,0.11495411]
[1756791459460,0.82452534,110250.0,110240.0,0.04969]
[1756791460662,0.82452534,110250.0,110240.0,0.08419]
[1756791461957,0.82452534,110250.0,110240.0,0.04969]
[1756791462663,0.82452534,110250.0,110240.0,0.11495411]
[1756791464064,0.82452534,110250.0,110240.0,0.14945411]
[1756791465459,0.82452534,110250.0,110240.0,0.11495411]
[1756791465666,1.18532534,110250.0,110240.0,0.04969]
[1756791466766,1.18532534,110250.0,110240.0,0.11495411]
[1756791469475,1.18569522,110250.0,110240.0,0.14945411]
[1756791471372,0.71607228,110250.0,110240.0,0.14945411]
[1756791471578,1.18569522,110250.0,110240.0,0.09031411]
[1756791471876,1.18569522,110250.0,110240.0,0.11500411]
[1756791472081,1.18569522,110250.0,110240.0,0.02505]
[1756791472674,1.18569522,110250.0,110240.0,0.001]
[1756791473384,1.18569522,110250.0,110240.0,0.02375]
[1756791474386,1.43569522,110250.0,110240.0,0.001]
[1756791475583,1.45592284,110250.0,110240.0,0.001]
[1756791479289,1.20592284,110250.0,110240.0,0.001]
[1756791492002,2.03336284,110250.0,110240.0,0.001]
[1756791501105,2.39416284,110250.0,110240.0,0.001]
[1756791502708,2.87897431,110250.0,110220.0,0.0823]
[1756791502909,1.19122294,110230.0,110220.0,0.04759]
[1756791503210,2.34858294,110230.0,110220.0,0.04759]
[1756791504207,2.36882235,110230.0,110220.0,0.04759]
[1756791504400,2.37765742,110230.0,110220.0,0.04759]
[1756791504600,2.35741801,110230.0,110220.0,0.04759]
[1756791504800,2.37765573,110230.0,110210.0,0.14756411]
[1756791505105,0.83042294,110220.0,110210.0,0.14756411]
[1756791505310,1.14042294,110220.0,110210.0,0.14756411]
[1756791505812,1.96778294,110220.0,110210.0,0.14756411]
[1756791506002,1.96778294,110220.0,110210.0,0.14856411]
[1756791506205,2.04215746,110220.0,110210.0,0.14856411]
[1756791506407,2.04515746,110220.0,110210.0,0.14856411]
[1756791508312,2.05015746,110220.0,110210.0,0.14856411]
[1756791509313,2.0703871,110220.0,110210.0,0.001]
[1756791509515,1.2430271,110220.0,110210.0,0.04859]
[1756791509712,2.0703871,110220.0,110210.0,0.02372]
[1756791509909,2.0703871,110220.0,110210.0,0.001]
[1756791511505,1.83557563,110220.0,110210.0,0.0833]
[1756791512216,1.81534599,110220.0,110210.0,0.0833]
[1756791520319,2.05015746,110220.0,110210.0,0.0833]
[1756791522317,1.22279746,110220.0,110210.0,0.0833]
[1756791522519,1.81526599,110220.0,110210.0,0.0833]
[1756791529116,2.05007746,110220.0,110210.0,0.0833]
[1756791531521,2.05031066,110220.0,110210.0,0.0833]
[1756791531727,1.22303066,110220.0,110210.0,0.0833]
[1756791531920,2.05023066,110220.0,110210.0,0.0833]
[1756791533327,2.05023066,110220.0,110210.0,0.001]
[1756791533623,2.0704849,110220.0,110210.0,0.001]
[1756791534328,2.30541297,110220.0,110210.0,0.001]
[1756791535029,2.0704849,110220.0,110210.0,0.001]
[1756791536433,2.30541297,110220.0,110210.0,0.001]
[1756791536731,2.0704849,110220.0,110210.0,0.001]
[1756791537134,2.30541297,110220.0,110210.0,0.001]
[1756791537536,2.0704849,110220.0,110210.0,0.001]
[1756791537735,2.0704049,110220.0,110210.0,0.0858]
[1756791537936,1.2432849,110220.0,110210.0,0.3358]
[1756791538125,0.98810259,110220.0,110210.0,0.63599218]
[1756791538332,1.81518259,110220.0,110210.0,0.63599218]
[1756791538636,0.72810259,110220.0,110210.0,0.63599218]
[1756791539434,0.72810259,110220.0,110210.0,0.38599218]
[1756791541137,1.23303066,110220.0,110210.0,0.15106411]
[1756791541326,1.23303066,110220.0,110210.0,0.11365411]
[1756791541529,1.46795873,110220.0,110210.0,0.06626411]
[1756791541838,1.71795873,110220.0,110210.0,0.06626411]
[1756791542136,1.71795873,110220.0,110210.0,0.001]
[1756791542341,1.73821206,110220.0,110210.0,0.001]
[1756791544040,1.61042785,110220.0,110210.0,0.0858]
[1756791544239,1.23303066,110220.0,110210.0,0.0858]
[1756791544440,2.06003066,110220.0,110210.0,0.0858]
[1756791546140,2.06003066,110220.0,110210.0,0.15106411]
[1756791546744,1.69923066,110220.0,110210.0,0.15106411]
[1756791547046,1.46426259,110220.0,110210.0,0.15106411]
[1756791547246,1.46426259,110220.0,110210.0,0.32072807]
[1756791547545,0.38730259,110220.0,110210.0,0.40232448]
[1756791548449,0.98303066,110220.0,110210.0,0.16739641]
[1756791548749,1.24303066,110220.0,110210.0,0.001]
[1756791549042,1.24303066,110220.0,110210.0,0.11329092]
[1756791549441,1.24303066,110220.0,110210.0,0.14852092]
[1756791550240,1.24303066,110220.0,110210.0,0.11329092]
[1756791551450,1.24303066,110220.0,110210.0,0.14852092]
[1756791551743,0.77317452,110220.0,110210.0,0.14852092]
[1756791551948,1.60005452,110220.0,110210.0,0.14852092]
[1756791552144,1.70911066,110220.0,110210.0,0.14852092]
[1756791552344,2.06991066,110220.0,110210.0,0.08322]
[1756791552543,2.06991066,110220.0,110210.0,0.14851095]
[1756791553851,2.06991066,110220.0,110210.0,0.08322]
[1756791554341,2.06991066,110220.0,110210.0,0.1485051]
[1756791556042,1.60005452,110220.0,110210.0,0.1485051]
[1756791556245,2.06991066,110220.0,110210.0,0.1485051]
[1756791559148,1.83490259,110220.0,110210.0,0.38343317]
[1756791559352,0.16237452,110220.0,110210.0,0.38343317]
[1756791559651,0.39730259,110220.0,110210.0,0.38343317]
[1756791560348,0.16237452,110220.0,110210.0,0.74423317]
[1756791560553,0.39730259,110220.0,110210.0,0.74423317]
[1756791562848,0.008,110220.0,110210.0,1.08496557]
[1756791563053,0.008,110220.0,110210.0,1.10127688]
[1756791564844,0.008,110220.0,110210.0,1.11013361]
[1756791565255,0.008,110220.0,110210.0,1.60346527]
[1756791565455,0.008,110220.0,110210.0,1.71773448]
[1756791568560,0.01857615,110240.0,110230.0,0.1729359]
[1756791568758,0.3608,110250.0,110230.0,1.87653995]
[1756791569062,0.6208,110250.0,110240.0,0.70795537]
[1756791569961,0.3708,110250.0,110240.0,0.70795537]
[1756791570260,0.23492807,110260.0,110250.0,0.06194]
[1756791570465,0.60492807,110260.0,110250.0,0.33209807]
[1756791571062,0.60492807,110260.0,110250.0,0.3972696]
[1756791571360,0.61392807,110260.0,110250.0,0.3972696]
[1756791571771,0.62092807,110260.0,110250.0,0.3982696]
[1756791572355,0.61392807,110260.0,110250.0,0.33209807]
[1756791572552,0.61492807,110260.0,110250.0,0.33209807]
[1756791572754,0.38,110260.0,110250.0,0.33209807]
[1756791572954,0.60592807,110260.0,110250.0,0.09717]
[1756791573155,0.60592807,110260.0,110250.0,0.33209807]
[1756791576565,0.371,110260.0,110250.0,0.33209807]
[1756791576865,0.60592807,110260.0,110250.0,0.33209807]
[1756791578166,0.60592807,110260.0,110250.0,0.09717]
[1756791578867,0.60592807,110260.0,110250.0,0.33209807]
[1756791579068,0.84085614,110260.0,110250.0,0.33209807]
[1756791579269,0.84085614,110260.0,110250.0,0.09717]
[1756791579766,0.84085614,110260.0,110250.0,0.09817]
[1756791580366,0.84085614,110260.0,110250.0,0.09717]
[1756791580870,0.84185614,110260.0,110250.0,0.09717]
[1756791585769,0.84185614,110260.0,110250.0,0.33209807]
[1756791588672,0.84185614,110260.0,110250.0,0.08222]
[1756791588971,2.51394421,110260.0,110230.0,1.30629746]
[1756791589170,0.46985614,110240.0,110230.0,0.89509593]
[1756791589371,0.84985614,110240.0,110230.0,0.89509593]
[1756791589573,0.46985614,110240.0,110230.0,0.92914593]
[1756791589771,0.80985614,110240.0,110230.0,0.92914593]
[1756791589971,0.80985614,110240.0,110230.0,0.93114593]
[1756791590577,0.80985614,110240.0,110230.0,0.10278593]
[1756791590779,0.80985614,110240.0,110230.0,0.93114593]
[1756791591284,0.80985614,110240.0,110230.0,0.99431746]
[1756791591575,0.23479769,110240.0,110230.0,0.99431746]
[1756791592676,0.23679769,110240.0,110230.0,0.99431746]
[1756791594378,0.25679769,110240.0,110230.0,0.99431746]
[1756791595371,0.022,110240.0,110230.0,0.92914593]
[1756791595577,0.25679769,110240.0,110230.0,0.92914593]
[1756791596080,0.23679769,110240.0,110230.0,0.10278593]
[1756791596267,0.56679769,110240.0,110230.0,0.99437746]
[1756791597983,0.56679769,110240.0,110230.0,0.16801746]
[1756791598281,0.56679769,110240.0,110230.0,0.99437746]
[1756791599077,0.25679769,110240.0,110230.0,0.99437746]
[1756791600182,0.23679769,110240.0,110230.0,0.99437746]
[1756791600383,0.57679769,110240.0,110230.0,0.99437746]
[1756791601982,0.022,110240.0,110230.0,0.99437746]
[1756791602183,0.54679769,110240.0,110230.0,0.99437746]
[1756791609903,0.60679769,110240.0,110230.0,0.99437746]
[1756791611200,0.002,110240.0,110230.0,0.99437746]
[1756791611805,0.002,110240.0,110230.0,1.22917515]
[1756791613305,0.002,110240.0,110230.0,1.16394362]
[1756791613606,0.002,110240.0,110230.0,1.24540953]
[1756791614102,0.01825252,110250.0,110230.0,2.28692543]
[1756791614409,0.01825252,110250.0,110240.0,0.76615529]
[1756791615499,0.01825252,110250.0,110240.0,0.8476212]
[1756791616798,0.01925252,110250.0,110240.0,0.8476212]
[1756791616999,0.01925252,110250.0,110240.0,1.4576212]
[1756791617201,0.01925252,110250.0,110240.0,1.4586212]
[1756791617907,0.01825252,110250.0,110240.0,1.4586212]
[1756791618507,0.01825252,110250.0,110240.0,0.86382351]
[1756791618709,0.01825252,110250.0,110240.0,1.4286212]
[1756791620311,0.01825252,110250.0,110240.0,1.0986212]
[1756791621819,0.01825252,110250.0,110240.0,1.4586212]
[1756791622121,0.01825252,110250.0,110240.0,1.4914245]
[1756791622620,0.01825252,110250.0,110240.0,1.37715529]
[1756791623123,0.09240541,110280.0,110270.0,0.07985]
[1756791623323,0.44240541,110280.0,110270.0,1.50164769]
[1756791623512,0.44240541,110280.0,110270.0,1.26685]
[1756791624120,0.44540541,110280.0,110270.0,1.26685]
[1756791624723,0.44840541,110280.0,110270.0,1.26685]
[1756791626426,0.44840541,110280.0,110270.0,1.26677]
[1756791628120,0.44840541,110280.0,110270.0,1.26673]
[1756791629328,0.6832031,110280.0,110270.0,1.26673]
[1756791631128,0.6832031,110280.0,110270.0,0.44065]
[1756791631428,0.6832031,110280.0,110270.0,1.26669]
[1756791631828,0.6832031,110280.0,110270.0,0.44065]
[1756791632028,0.6832031,110280.0,110270.0,1.26669]
[1756791632930,0.44840541,110280.0,110270.0,1.26669]
[1756791633132,0.6832031,110280.0,110270.0,1.26669]
[1756791636632,0.44840541,110280.0,110270.0,1.26669]
[1756791636934,0.6832031,110280.0,110270.0,1.26669]
[1756791640335,0.44840541,110280.0,110270.0,1.26669]
[1756791640538,0.6832031,110280.0,110270.0,1.26669]
[1756791643941,0.6832031,110280.0,110270.0,0.44065]
[1756791644338,0.6832031,110280.0,110270.0,1.26653]
[1756791644539,0.6832031,110280.0,110270.0,0.44065]
[1756791644739,0.6832031,110280.0,110270.0,1.26649]
[1756791645241,0.6832031,110280.0,110270.0,1.3317045]
[1756791645938,1.52880079,110280.0,110270.0,0.04556]
[1756791646144,2.35464079,110280.0,110260.0,0.1487045]
[1756791646340,0.59559769,110270.0,110260.0,0.1487045]
[1756791646546,0.95559769,110270.0,110260.0,0.1487045]
[1756791648347,0.95859769,110270.0,110260.0,0.1487045]
[1756791649240,0.96059769,110270.0,110260.0,0.1487045]
[1756791649946,0.95859769,110270.0,110260.0,0.1487045]
[1756791650147,0.96159769,110270.0,110260.0,0.1487045]
[1756791650943,0.3668,110270.0,110260.0,0.1487045]
[1756791651141,0.95159769,110270.0,110260.0,0.1487045]
[1756791652741,0.3668,110270.0,110260.0,0.1487045]
[1756791652942,0.7168,110270.0,110260.0,0.1487045]
[1756791653143,0.95159769,110270.0,110260.0,0.1487045]
[1756791653551,0.95147965,110270.0,110260.0,0.1487045]
[1756791654447,0.94947965,110270.0,110260.0,0.1487045]
[1756791655651,0.94647965,110270.0,110260.0,0.1487045]
[1756791655851,0.94847965,110270.0,110260.0,0.1487045]
[1756791656444,0.59647965,110270.0,110260.0,0.1487045]
[1756791656649,0.96847965,110270.0,110260.0,0.1487045]
[1756791657050,0.59847965,110270.0,110260.0,0.1487045]
[1756791657249,0.95847965,110270.0,110260.0,0.1487045]
[1756791657651,0.59847965,110270.0,110260.0,0.1487045]
[1756791657949,0.93847965,110270.0,110260.0,0.38338415]
[1756791660247,0.93847965,110270.0,110260.0,0.1487045]
[1756791660546,0.93847965,110270.0,110260.0,0.1138345]
[1756791660746,0.93847965,110270.0,110260.0,0.1487045]
[1756791661946,0.3938,110270.0,110260.0,0.1487045]
[1756791662159,0.92847965,110270.0,110260.0,0.1487045]
[1756791670756,0.59847965,110270.0,110260.0,0.1487045]
[1756791670956,0.90847965,110270.0,110260.0,0.1487045]
[1756791673661,0.3738,110270.0,110260.0,0.1487045]
[1756791673962,0.92847965,110270.0,110260.0,0.38338415]
[1756791674160,0.4138,110270.0,110260.0,0.38338415]
[1756791674356,0.7238,110270.0,110260.0,0.1487045]
[1756791674558,0.95847965,110270.0,110260.0,0.38338415]
[1756791675260,0.95847965,110270.0,110260.0,0.31816965]
[1756791675461,0.3638,110270.0,110260.0,0.31816965]
[1756791675659,0.59847965,110270.0,110260.0,0.31816965]
[1756791675863,0.93847965,110270.0,110260.0,0.31816965]
[1756791676254,0.64847965,110270.0,110260.0,0.31816965]
[1756791676460,0.95847965,110270.0,110260.0,0.31816965]
[1756791676963,0.4138,110270.0,110260.0,0.31816965]
[1756791677167,0.92847965,110270.0,110260.0,0.08349]
[1756791680863,0.92847965,110270.0,110260.0,0.16500813]
[1756791681263,0.92847965,110270.0,110260.0,0.39968778]
[1756791682067,0.92847965,110270.0,110260.0,0.31816965]
[1756791684367,0.56767965,110270.0,110260.0,0.31816965]
[1756791684567,0.56767965,110270.0,110260.0,0.08349]
[1756791684867,0.56767965,110270.0,110260.0,0.31816965]
[1756791685869,0.92847965,110270.0,110260.0,0.31816965]
[1756791687268,0.4338,110270.0,110260.0,0.31816965]
[1756791687470,0.94847965,110270.0,110260.0,0.31816965]
[1756791688575,0.94847965,110270.0,110260.0,0.08349]
[1756791688768,0.94847965,110270.0,110260.0,0.31816965]
[1756791688970,0.94847965,110270.0,110260.0,0.08349]
[1756791690180,0.94847965,110270.0,110260.0,0.04862]
[1756791690670,0.94847965,110270.0,110260.0,0.08371]
[1756791691974,0.94847965,110270.0,110260.0,0.13013813]
[1756791692768,0.94847965,110270.0,110260.0,0.16522813]
[1756791695268,0.7138,110270.0,110260.0,0.16522813]
[1756791695474,0.90847965,110270.0,110260.0,0.16522813]
[1756791696083,0.90847965,110270.0,110260.0,0.23056375]
[1756791696278,0.90847965,110270.0,110260.0,0.14904562]
[1756791696582,0.94847965,110270.0,110260.0,0.14904562]
[1756791697177,0.94847965,110270.0,110260.0,0.11395562]
[1756791697377,1.7939593,110270.0,110260.0,0.06533562]
[1756791697581,2.04890234,110270.0,110250.0,0.08539039]
[1756791697784,1.6558793,110260.0,110250.0,0.06533562]
[1756791698080,1.99443318,110260.0,110250.0,0.06533562]
[1756791698275,1.99443318,110260.0,110240.0,0.09011562]
[1756791698584,0.59547965,110250.0,110240.0,0.09011562]
[1756791698773,0.97547965,110250.0,110240.0,0.09011562]
[1756791700285,0.59547965,110250.0,110240.0,0.09011562]
[1756791700488,0.95547965,110250.0,110240.0,0.0475]
[1756791700877,0.59847965,110250.0,110240.0,0.0475]
[1756791701184,0.95847965,110250.0,110240.0,0.0475]
[1756791701685,0.96147965,110250.0,110240.0,0.0475]
[1756791702188,0.96147965,110250.0,110240.0,0.02478]
[1756791702389,0.96147965,110250.0,110230.0,0.38419527]
[1756791702688,0.23467965,110240.0,110230.0,0.38419527]
[1756791702890,0.26359903,110240.0,110230.0,0.38419527]
[1756791703085,0.49827868,110240.0,110230.0,0.14951562]
[1756791703284,0.26359903,110240.0,110230.0,0.14951562]
[1756791703884,0.26459903,110240.0,110230.0,0.14951562]
[1756791704483,0.03191938,110240.0,110230.0,0.14951562]
[1756791704683,0.60659903,110240.0,110230.0,0.14951562]
[1756791705791,0.84127868,110240.0,110230.0,0.14951562]
[1756791707694,2.27779868,110240.0,110220.0,0.19164746]
[1756791707889,0.8301593,110230.0,110220.0,0.13284933]
[1756791708103,1.1801593,110230.0,110220.0,0.06533562]
[1756791708389,1.4301593,110230.0,110210.0,0.13284627]
[1756791708591,1.6558793,110220.0,110210.0,0.02001065]
[1756791708892,2.23055895,110220.0,110210.0,0.02001065]
[1756791709893,1.1701593,110220.0,110210.0,0.06751065]
[1756791710086,1.9959593,110220.0,110210.0,0.10419065]
[1756791710484,1.9959593,110220.0,110210.0,0.10519065]
[1756791711387,2.06902034,110220.0,110210.0,0.10519065]
[1756791711588,0.43686104,110220.0,110210.0,0.3388703]
[1756791711891,1.49734069,110220.0,110210.0,0.10419065]
[1756791712093,1.05154069,110220.0,110210.0,0.3388703]
[1756791712282,0.67154069,110220.0,110210.0,0.3388703]
[1756791712896,1.03454069,110220.0,110210.0,0.10419065]
[1756791713093,1.26722034,110220.0,110210.0,0.02001065]
[1756791713497,1.75189999,110220.0,110210.0,0.02001065]
[1756791713697,1.75089999,110220.0,110210.0,0.02001065]
[1756791714289,1.75289999,110220.0,110210.0,0.02001065]
[1756791714490,1.75089999,110220.0,110210.0,0.02001065]
[1756791714698,1.75389999,110220.0,110210.0,0.02001065]
[1756791714900,1.51922034,110220.0,110210.0,0.02001065]
[1756791715598,1.51980418,110220.0,110210.0,0.02001065]
[1756791719100,1.51980418,110220.0,110190.0,0.08418]
[1756791719299,0.23497157,110200.0,110190.0,0.08418]
[1756791719501,0.57497157,110200.0,110190.0,0.08418]
[1756791720287,0.23497157,110200.0,110190.0,0.08418]
[1756791720895,0.23597157,110200.0,110190.0,0.08418]
[1756791726405,0.23597157,110200.0,110190.0,0.14951562]
[1756791736221,0.25597157,110200.0,110190.0,0.08418]
[1756791737421,0.25597157,110200.0,110190.0,0.16569813]
[1756791740525,0.23597157,110200.0,110190.0,0.16569813]
[1756791743232,0.23597157,110200.0,110190.0,0.52649813]
[1756791744434,0.23597157,110200.0,110190.0,0.44498]
[1756791745328,0.23597157,110200.0,110190.0,0.52649813]
[1756791747334,0.25597157,110200.0,110190.0,1.35245813]
[1756791749136,0.26483895,110200.0,110190.0,1.35245813]
[1756791749641,0.25597157,110200.0,110190.0,1.35245813]
[1756791752135,0.001,110200.0,110190.0,1.35245813]
[1756791752334,0.001,110200.0,110190.0,1.6781784]
[1756791752836,0.001,110200.0,110190.0,1.35245813]
[1756791753144,0.23597157,110200.0,110190.0,0.52649813]
[1756791753348,0.001,110200.0,110190.0,1.35694813]
[1756791754842,0.23597157,110200.0,110190.0,1.35694813]
[1756791755439,0.001,110200.0,110190.0,2.48763997]
[1756791755643,0.001,110200.0,110190.0,2.40612184]
[1756791755847,0.001,110200.0,110190.0,2.52024723]
[1756791756036,3.714e-05,110200.0,110190.0,2.52024723]
[1756791756235,3.714e-05,110200.0,110190.0,2.40612184]
[1756791757447,3.714e-05,110200.0,110190.0,2.40912184]
[1756791758146,3.714e-05,110200.0,110190.0,2.67482184]
[1756791758342,0.01814509,110230.0,110220.0,0.04667]
[1756791758645,0.33311666,110230.0,110220.0,0.99194237]
[1756791758842,0.33311666,110230.0,110220.0,0.16342237]
[1756791758843,0.59311666,110230.0,110220.0,0.16342237]
[1756791759543,0.57611666,110230.0,110220.0,0.16342237]
[1756791759748,0.34611666,110230.0,110220.0,0.16342237]
[1756791760248,0.34611666,110230.0,110220.0,0.08182]
[1756791761851,0.40114509,110230.0,110220.0,0.08182]
[1756791762050,0.63611666,110230.0,110220.0,0.08182]
[1756791762243,0.63611666,110230.0,110220.0,0.14702947]
[1756791762952,0.31797157,110230.0,110220.0,0.14702947]
[1756791763548,0.083,110230.0,110220.0,0.47272504]
[1756791763751,0.003,110230.0,110220.0,0.40751557]
[1756791763945,0.003,110230.0,110220.0,0.47271315]
[1756791764248,0.003,110230.0,110220.0,0.72271315]
[1756791765553,0.001,110230.0,110220.0,0.72271315]
[1756791766251,0.3608,110240.0,110220.0,0.72271315]
[1756791766453,0.6908,110240.0,110230.0,0.91002]
[1756791768554,0.92677157,110240.0,110230.0,0.91002]
[1756791770558,0.92677157,110240.0,110230.0,0.91455]
[1756791776660,0.56597157,110240.0,110230.0,0.91455]
[1756791777468,0.56578161,110240.0,110230.0,1.14933161]
[1756791777966,0.56578161,110240.0,110230.0,0.32113161]
[1756791778266,0.80056322,110240.0,110230.0,1.14817161]
[1756791778478,0.56578161,110240.0,110230.0,1.14817161]
[1756791780168,0.56578161,110240.0,110230.0,1.21336919]
[1756791781770,0.331,110240.0,110230.0,1.21336919]
[1756791781972,0.56578161,110240.0,110230.0,1.21336919]